bitfinex-derivatives/quotes_BTCF0:USTF0_20250828
["timestamp","ask_amount","ask_price","bid_price","bid_amount"]
[1756417151562,1.67916112,112030.0,112020.0,0.69009934]
[1756417157267,1.67916112,112030.0,112020.0,0.14748548]
[1756417162568,1.67916112,112030.0,112020.0,0.69009934]
[1756417165573,1.67916112,112030.0,112020.0,0.14748548]
[1756417166378,0.86584112,112030.0,112020.0,0.14748548]
[1756417166576,1.67904112,112030.0,112020.0,0.14748548]
[1756417169479,1.13642726,112030.0,112020.0,0.69009934]
[1756417169673,1.67904112,112030.0,112020.0,0.69009934]
[1756417173673,1.67904112,112030.0,112020.0,0.14748548]
[1756417174580,1.67904112,112030.0,112020.0,0.1277815]
[1756417175984,1.67904112,112030.0,112020.0,0.1050015]
[1756417180086,1.13642726,112030.0,112020.0,0.1050015]
[1756417180286,1.67904112,112030.0,112020.0,0.1050015]
[1756417181582,0.86584112,112030.0,112020.0,0.1050015]
[1756417181782,1.67888112,112030.0,112020.0,0.1050015]
[1756417184484,1.13626726,112030.0,112020.0,0.1050015]
[1756417184690,1.67888112,112030.0,112020.0,0.1050015]
[1756417187094,1.13626726,112030.0,112020.0,0.1050015]
[1756417187292,1.67888112,112030.0,112020.0,0.1050015]
[1756417194901,0.86584112,112030.0,112020.0,0.1050015]
[1756417195203,1.67872112,112030.0,112020.0,0.1050015]
[1756417199002,1.67868112,112030.0,112020.0,0.1050015]
[1756417200105,0.86584112,112030.0,112020.0,0.1050015]
[1756417200305,1.13602726,112030.0,112020.0,0.1050013]
[1756417200502,0.03773,112020.0,112010.0,0.0354688]
[1756417200709,0.58034386,112020.0,112010.0,0.10557]
[1756417201010,0.03773,112010.0,112000.0,0.85148913]
[1756417201307,1.39314386,112010.0,112000.0,0.96076271]
[1756417201904,1.39214386,112010.0,112000.0,0.96076271]
[1756417202104,1.41018531,112010.0,112000.0,0.41814885]
[1756417202508,1.41018531,112010.0,112000.0,0.96076271]
[1756417202711,1.41018531,112010.0,112000.0,0.96276271]
[1756417203513,1.41018531,112010.0,112000.0,0.42014885]
[1756417203711,1.41018531,112010.0,112000.0,0.96276271]
[1756417207013,1.41927751,112010.0,112000.0,0.96276271]
[1756417207213,1.41018531,112010.0,112000.0,0.96276271]
[1756417208312,1.41018531,112010.0,112000.0,0.42014885]
[1756417208513,1.41018531,112010.0,112000.0,0.96276271]
[1756417209110,0.86757145,112010.0,112000.0,0.96276271]
[1756417209610,1.41018531,112010.0,112000.0,0.96276271]
[1756417212316,0.86757145,112010.0,112000.0,0.96276271]
[1756417212517,1.41018531,112010.0,112000.0,0.96276271]
[1756417213117,0.86757145,112010.0,112000.0,0.96276271]
[1756417213416,1.41018531,112010.0,112000.0,0.96276271]
[1756417214319,1.41014531,112010.0,112000.0,0.96276271]
[1756417215218,1.41014531,112010.0,112000.0,0.42014885]
[1756417215416,1.41014531,112010.0,112000.0,0.96276271]
[1756417218219,1.41014531,112010.0,112000.0,0.42014885]
[1756417218416,1.41014531,112010.0,112000.0,0.96276271]
[1756417225125,1.41014531,112010.0,112000.0,0.9565813]
[1756417229928,1.41014531,112010.0,112000.0,0.41396744]
[1756417230128,1.41014531,112010.0,112000.0,0.9565813]
[1756417234937,1.41014531,112010.0,112000.0,0.41396744]
[1756417235136,1.41014531,112010.0,112000.0,0.9565813]
[1756417235435,1.41014531,112010.0,112000.0,0.41396744]
[1756417235734,1.41014531,112010.0,112000.0,0.9565813]
[1756417236136,1.41014531,112010.0,112000.0,0.8673094]
[1756417236435,1.41014531,112010.0,112000.0,0.9565863]
[1756417238729,1.41014531,112010.0,112000.0,0.41397244]
[1756417239033,1.41014531,112010.0,112000.0,0.9565863]
[1756417247240,0.86753145,112010.0,112000.0,0.9565863]
[1756417247435,1.41014531,112010.0,112000.0,0.9565863]
[1756417250542,0.84949,112010.0,112000.0,0.9565863]
[1756417250842,1.39210386,112010.0,112000.0,0.9565863]
[1756417252548,1.39210386,112010.0,112000.0,0.41397244]
[1756417252747,1.39210386,112010.0,112000.0,0.9565863]
[1756417253449,0.84949,112010.0,112000.0,0.9565863]
[1756417253648,1.39210386,112010.0,112000.0,0.9565863]
[1756417259262,1.39210386,112010.0,112000.0,0.41397244]
[1756417259452,1.39210386,112010.0,112000.0,0.9565863]
[1756417266667,0.57934386,112010.0,112000.0,0.9565863]
[1756417266858,1.39166386,112010.0,112000.0,0.9565863]
[1756417270256,0.03673,112010.0,112000.0,0.41397244]
[1756417270460,1.39162386,112010.0,112000.0,0.9565863]
[1756417272368,1.39162386,112010.0,112000.0,0.41397244]
[1756417272569,1.39162386,112010.0,112000.0,0.9565863]
[1756417274669,0.84901,112010.0,112000.0,0.9565863]
[1756417274968,1.39162386,112010.0,112000.0,0.9565863]
[1756417277871,1.39162386,112010.0,112000.0,0.41397244]
[1756417278073,1.39162386,112010.0,112000.0,0.9565863]
[1756417278973,0.57934386,112010.0,112000.0,0.9565863]
[1756417279272,1.39150386,112010.0,112000.0,0.9565863]
[1756417280473,0.57934386,112010.0,112000.0,0.9565863]
[1756417280772,1.39150386,112010.0,112000.0,0.9565863]
[1756417281768,0.84889,112010.0,112000.0,0.9565863]
[1756417281969,1.39150386,112010.0,112000.0,0.9565863]
[1756417282673,1.39150386,112010.0,112000.0,0.41397244]
[1756417282973,1.39150386,112010.0,112000.0,0.8673094]
[1756417284078,1.39150386,112010.0,112000.0,0.32469554]
[1756417284268,1.39150386,112010.0,112000.0,0.8673094]
[1756417284470,0.84889,112010.0,112000.0,0.8673094]
[1756417285168,1.39150386,112010.0,112000.0,0.8673094]
[1756417289580,0.84889,112010.0,112000.0,0.8673094]
[1756417289779,1.39150386,112010.0,112000.0,0.8673094]
[1756417294580,1.39150386,112010.0,112000.0,0.30494859]
[1756417294884,1.39150386,112010.0,112000.0,0.002]
[1756417295084,1.39150386,112010.0,112000.0,0.062]
[1756417295275,1.39150386,112010.0,112000.0,0.07748]
[1756417296386,1.39150386,112010.0,112000.0,0.10163]
[1756417298484,1.39150386,112010.0,112000.0,0.07748]
[1756417298687,1.39150386,112010.0,112000.0,0.62009386]
[1756417300693,1.39150386,112010.0,112000.0,0.07748]
[1756417308190,1.64150386,112010.0,112000.0,0.06]
[1756417308393,0.02862,112000.0,111970.0,0.81271358]
[1756417308694,0.02862,112000.0,111970.0,1.13271928]
[1756417308695,0.55463386,111980.0,111970.0,1.13271928]
[1756417309286,0.57123386,111980.0,111970.0,1.01162286]
[1756417310397,0.57323386,111980.0,111970.0,1.01162286]
[1756417310998,0.57323386,111980.0,111970.0,0.92232206]
[1756417311198,0.57523386,111980.0,111970.0,0.92232206]
[1756417312299,0.57523386,111980.0,111970.0,0.91480449]
[1756417312696,0.57523386,111980.0,111970.0,1.00410529]
[1756417315801,0.57523386,111980.0,111970.0,0.46149143]
[1756417316103,0.57523386,111980.0,111970.0,1.00410529]
[1756417320208,0.57523386,111980.0,111970.0,0.91480449]
[1756417326801,0.58437511,111980.0,111970.0,0.91480449]
[1756417327006,0.57523386,111980.0,111970.0,0.91480449]
[1756417332514,0.57523386,111980.0,111970.0,1.00410529]
[1756417332711,0.03262,111980.0,111970.0,1.00410529]
[1756417332909,0.84462,111980.0,111970.0,0.68410529]
[1756417333106,1.38723386,111980.0,111970.0,0.68410529]
[1756417333330,0.84462,111980.0,111970.0,0.68410529]
[1756417333613,1.38723386,111980.0,111970.0,0.68410529]
[1756417334119,1.38723386,111980.0,111970.0,0.59480449]
[1756417335519,1.38723386,111980.0,111970.0,0.58224386]
[1756417335719,1.40561606,111980.0,111970.0,0.03963]
[1756417336017,1.40561606,111980.0,111970.0,0.58224386]
[1756417340521,1.40561606,111980.0,111970.0,0.67154466]
[1756417341324,0.8630022,111980.0,111970.0,0.67154466]
[1756417341521,1.40561606,111980.0,111970.0,0.67154466]
[1756417343727,0.59361606,111980.0,111970.0,0.67154466]
[1756417343927,0.0223822,111980.0,111970.0,0.92154466]
[1756417344221,0.0223822,111980.0,111970.0,2.04350466]
[1756417344426,0.004,111980.0,111970.0,2.04350466]
[1756417344622,1.36904056,112000.0,111990.0,0.04016]
[1756417344829,1.36904056,112000.0,111990.0,0.58277386]
[1756417345018,1.36904056,112000.0,111990.0,0.67205866]
[1756417346129,1.37104056,112000.0,111990.0,0.67205866]
[1756417347017,1.37304056,112000.0,111990.0,0.67205866]
[1756417355839,0.8304267,112000.0,111990.0,0.67205866]
[1756417356039,1.37304056,112000.0,111990.0,0.67205866]
[1756417356341,0.8033167,112000.0,111990.0,0.67205866]
[1756417357240,0.8198467,112000.0,111990.0,0.67205866]
[1756417357440,0.8178467,112000.0,111990.0,0.67205866]
[1756417357640,0.8158467,112000.0,111990.0,0.67305866]
[1756417358341,0.8168467,112000.0,111990.0,0.67205866]
[1756417359635,0.8338667,112000.0,111990.0,0.67205866]
[1756417361949,0.8338667,112000.0,111990.0,0.1294448]
[1756417362144,0.8338667,112000.0,111990.0,0.67205866]
[1756417363148,0.0527467,112000.0,111990.0,0.67205866]
[1756417363338,1.40712056,112000.0,111990.0,0.67205866]
[1756417364447,0.8645067,112000.0,111990.0,0.67205866]
[1756417368153,1.40712056,112000.0,111990.0,0.67205866]
[1756417368854,0.8645067,112000.0,111990.0,0.67205866]
[1756417383463,1.40712056,112000.0,111990.0,0.67205866]
[1756417384262,0.59536056,112000.0,111990.0,0.67205866]
[1756417384462,1.40696056,112000.0,111990.0,0.67205866]
[1756417391167,1.40696056,112000.0,111990.0,0.1294448]
[1756417391366,1.40696056,112000.0,111990.0,0.67205866]
[1756417392167,0.8643467,112000.0,111990.0,0.67205866]
[1756417392371,1.40696056,112000.0,111990.0,0.67205866]
[1756417396075,1.40696056,112000.0,111990.0,0.1294448]
[1756417396371,1.40696056,112000.0,111990.0,0.67205866]
[1756417397874,1.40696056,112000.0,111990.0,0.1294448]
[1756417398068,1.40696056,112000.0,111990.0,0.67205866]
[1756417401077,0.59536056,112000.0,111990.0,0.67205866]
[1756417401375,1.40688056,112000.0,111990.0,0.67205866]
[1756417401675,1.40684056,112000.0,111990.0,0.67205866]
[1756417401971,0.59536056,112000.0,111990.0,0.67205866]
[1756417418483,0.59536056,112000.0,111990.0,0.64733876]
[1756417419084,0.59536056,112000.0,111990.0,0.67232876]
[1756417427789,0.59536056,112000.0,111990.0,0.1297149]
[1756417427990,0.59536056,112000.0,111990.0,0.58304386]
[1756417428187,0.59536056,112000.0,111990.0,0.55805386]
[1756417428386,0.59536056,112000.0,111990.0,0.58304386]
[1756417428990,0.59536056,112000.0,111990.0,0.67232876]
[1756417429793,0.57716386,112000.0,111990.0,0.67232876]
[1756417430785,0.82716386,112000.0,111990.0,0.01544]
[1756417431184,0.82716386,112000.0,111980.0,0.65688976]
[1756417431392,1.38638386,111990.0,111980.0,0.67341976]
[1756417431588,1.40453216,111990.0,111980.0,0.67341976]
[1756417432794,1.40453216,111990.0,111980.0,0.1318059]
[1756417432995,1.40453216,111990.0,111980.0,0.67441976]
[1756417433494,1.40453216,111990.0,111980.0,0.1308059]
[1756417433691,1.40453216,111990.0,111980.0,0.1318059]
[1756417433994,0.8619183,111990.0,111980.0,0.67441976]
[1756417434196,1.40453216,111990.0,111980.0,0.67441976]
[1756417434398,1.40553216,111990.0,111980.0,0.67341976]
[1756417434595,1.40653216,111990.0,111980.0,0.67341976]
[1756417435097,1.40753216,111990.0,111980.0,0.67341976]
[1756417435298,1.40753216,111990.0,111980.0,0.1308059]
[1756417435497,1.40753216,111990.0,111980.0,0.67341976]
[1756417437001,1.40653216,111990.0,111980.0,0.67341976]
[1756417437298,1.40853216,111990.0,111980.0,0.58413386]
[1756417437798,1.40853216,111990.0,111980.0,0.04152]
[1756417438299,1.40853216,111990.0,111980.0,0.58413386]
[1756417439696,1.40853216,111990.0,111980.0,0.55914386]
[1756417439897,0.01602,111980.0,111970.0,0.1142843]
[1756417440198,0.03249,111980.0,111970.0,0.99342816]
[1756417441097,0.03449,111980.0,111970.0,0.99342816]
[1756417443403,0.002,111980.0,111970.0,0.99342816]
[1756417443902,0.01845,111980.0,111970.0,0.99342816]
[1756417445105,0.03447,111980.0,111970.0,0.4508143]
[1756417445406,0.03447,111980.0,111970.0,0.99342816]
[1756417447306,0.01845,111980.0,111970.0,0.99342816]
[1756417450908,0.01845,111980.0,111970.0,0.4508143]
[1756417451110,0.01845,111980.0,111970.0,0.99342816]
[1756417453317,0.01845,111980.0,111970.0,0.4508143]
[1756417453520,0.01845,111980.0,111970.0,0.99342816]
[1756417455012,0.01845,111980.0,111970.0,0.79342816]
[1756417456315,0.56106386,111980.0,111970.0,0.79342816]
[1756417456610,0.56106386,111980.0,111970.0,0.70413386]
[1756417457416,0.01845,111980.0,111970.0,0.70413386]
[1756417457719,0.56106386,111980.0,111970.0,0.70413386]
[1756417458116,0.01845,111980.0,111970.0,0.79343446]
[1756417458317,0.56106386,111980.0,111970.0,0.79343446]
[1756417458517,0.002,111980.0,111970.0,0.79343446]
[1756417458719,0.54461386,111980.0,111970.0,0.79343446]
[1756417460221,0.56106386,111980.0,111970.0,0.79343446]
[1756417460521,0.54461386,111980.0,111970.0,0.79343446]
[1756417460721,0.56106386,111980.0,111970.0,0.79343446]
[1756417461621,0.56106386,111980.0,111970.0,0.95416088]
[1756417466119,0.01845,111980.0,111970.0,0.95416088]
[1756417466527,0.57708386,111980.0,111970.0,0.41154702]
[1756417466726,0.57708386,111980.0,111970.0,0.95416088]
[1756417469424,0.57708386,111980.0,111970.0,0.86486028]
[1756417469729,0.82708386,111980.0,111970.0,0.86486028]
[1756417470429,0.82708386,111980.0,111970.0,0.70413386]
[1756417472031,0.8359268,111980.0,111970.0,0.70413386]
[1756417472631,0.8359268,111980.0,111970.0,0.16152]
[1756417472826,0.8359268,111980.0,111970.0,0.70413386]
[1756417480833,0.8359268,111980.0,111970.0,0.16152]
[1756417481834,0.5859268,111980.0,111970.0,0.16152]
[1756417483140,0.8497268,111980.0,111970.0,0.16152]
[1756417487734,1.0997268,111980.0,111970.0,0.01653]
[1756417488440,0.8359268,111980.0,111970.0,0.01653]
[1756417488937,0.29331294,111980.0,111970.0,0.01653]
[1756417489143,1.6470868,111980.0,111970.0,0.01653]
[1756417489545,1.6470868,111980.0,111970.0,0.03985]
[1756417492242,1.6470868,111980.0,111970.0,0.01653]
[1756417492938,0.01602,111970.0,111960.0,0.58248386]
[1756417493144,0.57499386,111970.0,111960.0,0.61248386]
[1756417493343,0.03238,111970.0,111960.0,0.61248386]
[1756417493544,0.57499386,111970.0,111960.0,0.61248386]
[1756417494044,0.57499386,111970.0,111960.0,0.61348386]
[1756417494240,0.57499386,111970.0,111960.0,0.61448386]
[1756417495243,0.57599386,111970.0,111960.0,0.61348386]
[1756417496147,1.38719386,111970.0,111960.0,0.61348386]
[1756417496649,0.84458,111970.0,111960.0,0.61348386]
[1756417496946,1.38819386,111970.0,111960.0,0.61248386]
[1756417497249,1.38819386,111970.0,111960.0,0.06987]
[1756417497553,1.38819386,111970.0,111960.0,0.61248386]
[1756417497943,1.65199386,111970.0,111960.0,0.61248386]
[1756417498248,1.72448448,111970.0,111960.0,0.06987]
[1756417498441,1.72448448,111970.0,111960.0,0.61248386]
[1756417498643,1.72448448,111970.0,111960.0,0.06987]
[1756417501752,1.18187062,111970.0,111960.0,0.06987]
[1756417502051,1.72448448,111970.0,111960.0,0.06987]
[1756417503555,1.18187062,111970.0,111960.0,0.06987]
[1756417503752,1.72448448,111970.0,111960.0,0.06987]
[1756417506255,0.37067062,111970.0,111960.0,0.06987]
[1756417506555,1.72448448,111970.0,111960.0,0.06987]
[1756417515957,1.72448448,111970.0,111960.0,0.04655]
[1756417521264,1.18187062,111970.0,111960.0,0.04655]
[1756417521562,1.72448448,111970.0,111960.0,0.04655]
[1756417527171,0.37067062,111970.0,111960.0,0.61268386]
[1756417527371,1.72444448,111970.0,111960.0,0.61268386]
[1756417528674,1.72444448,111970.0,111960.0,0.70199226]
[1756417529171,1.72444448,111970.0,111960.0,0.1593784]
[1756417529675,1.72444448,111970.0,111960.0,0.07007]
[1756417532276,1.72444448,111970.0,111960.0,0.04655]
[1756417532973,1.72444448,111970.0,111960.0,0.58916386]
[1756417535075,1.72444448,111970.0,111960.0,0.61297386]
[1756417535670,1.46064448,111970.0,111960.0,0.61297386]
[1756417537677,1.46064448,111970.0,111960.0,0.1596684]
[1756417537876,1.46060448,111970.0,111960.0,0.1596684]
[1756417539483,1.46060448,111970.0,111960.0,0.70228226]
[1756417541778,1.46060448,111970.0,111960.0,0.1596684]
[1756417541979,1.46060448,111970.0,111960.0,0.70228226]
[1756417543283,1.46060448,111970.0,111960.0,0.61297386]
[1756417545093,1.46060448,111970.0,111960.0,0.70228226]
[1756417548398,1.72440448,111970.0,111960.0,0.70228226]
[1756417549700,1.72440448,111970.0,111960.0,0.1596684]
[1756417549900,1.72440448,111970.0,111960.0,0.70228226]
[1756417551702,1.72440448,111970.0,111960.0,0.1596684]
[1756417556910,1.72440448,111970.0,111960.0,0.07036]
[1756417561016,1.72440448,111970.0,111960.0,0.1596684]
[1756417562615,1.18179062,111970.0,111960.0,0.1596684]
[1756417562814,1.72440448,111970.0,111960.0,0.1596684]
[1756417564019,1.18179062,111970.0,111960.0,0.1596684]
[1756417564320,1.72440448,111970.0,111960.0,0.1596684]
[1756417569219,1.18179062,111970.0,111960.0,0.1596684]
[1756417569420,1.72440448,111970.0,111960.0,0.1596684]
[1756417577928,1.72440448,111970.0,111960.0,0.70228226]
[1756417587335,1.65171386,111970.0,111960.0,0.70228226]
[1756417589043,1.65171386,111970.0,111960.0,0.1596684]
[1756417589240,1.65171386,111970.0,111960.0,0.70228226]
[1756417600945,1.38791386,111970.0,111960.0,0.70228226]
[1756417607150,0.8453,111970.0,111960.0,0.70228226]
[1756417607351,1.38791386,111970.0,111960.0,0.70228226]
[1756417609545,0.8453,111970.0,111960.0,0.70228226]
[1756417609848,1.38791386,111970.0,111960.0,0.70228226]
[1756417610542,1.38783386,111970.0,111960.0,0.70228226]
[1756417636768,0.84522,111970.0,111960.0,0.70228226]
[1756417636968,1.38783386,111970.0,111960.0,0.70228226]
[1756417640467,1.38783386,111970.0,111960.0,0.1596684]
[1756417640674,1.38783386,111970.0,111960.0,0.70228226]
[1756417641273,0.84522,111970.0,111960.0,0.70228226]
[1756417641475,1.38783386,111970.0,111960.0,0.70228226]
[1756417661297,1.38783386,111970.0,111960.0,0.1596684]
[1756417661482,1.38783386,111970.0,111960.0,0.70228226]
[1756417674395,1.38783386,111970.0,111960.0,0.1596684]
[1756417674594,1.38783386,111970.0,111960.0,0.70228226]
[1756417677397,1.38783386,111970.0,111960.0,0.07036]
[1756417677697,1.38739386,111970.0,111960.0,0.61297386]
[1756417682899,0.002,111970.0,111960.0,1.78489612]
[1756417683100,0.03185,111980.0,111970.0,0.1299204]
[1756417683402,0.03185,111980.0,111970.0,1.48289426]
[1756417683698,0.03185,111980.0,111970.0,1.80289426]
[1756417684398,0.03285,111980.0,111970.0,1.80289426]
[1756417685000,0.01683,111980.0,111970.0,1.80289426]
[1756417696006,0.001,111980.0,111970.0,1.80289426]
[1756417696603,0.001,111980.0,111970.0,1.48289426]
[1756417696805,0.001,111980.0,111970.0,1.80289426]
[1756417698104,0.001,111980.0,111970.0,1.48289426]
[1756417698305,0.001,111980.0,111970.0,1.79289426]
[1756417704009,0.55863386,111990.0,111980.0,0.0892929]
[1756417704212,0.57446386,111990.0,111980.0,0.67252676]
[1756417705712,0.57546386,111990.0,111980.0,0.67252676]
[1756417709521,0.57546386,111990.0,111980.0,0.1299129]
[1756417709817,0.57546386,111990.0,111980.0,0.67252676]
[1756417712416,0.001,111990.0,111980.0,0.67252676]
[1756417712612,0.001,111990.0,111980.0,0.99252676]
[1756417712812,1.1230764,112000.0,111990.0,0.1292449]
[1756417713018,1.66569026,112000.0,111990.0,0.67185876]
[1756417713919,1.66669026,112000.0,111990.0,0.67185876]
[1756417715619,0.3141164,112000.0,111990.0,0.67185876]
[1756417716721,0.85673026,112000.0,111990.0,0.67185876]
[1756417717023,0.85573026,112000.0,111990.0,0.67185876]
[1756417717221,0.85573026,112000.0,111990.0,0.68085429]
[1756417717421,0.3131164,112000.0,111990.0,0.68085429]
[1756417718020,0.0493164,112000.0,111990.0,0.68085429]
[1756417718220,0.0332964,112000.0,111990.0,0.68085429]
[1756417718622,0.0180364,112000.0,111990.0,1.74073429]
[1756417719121,0.0180364,112000.0,111990.0,2.60334815]
[1756417719322,0.0180364,112000.0,111990.0,2.06073429]
[1756417719523,0.0180364,112000.0,111990.0,2.60334815]
[1756417720021,0.0180364,112000.0,111990.0,2.60434815]
[1756417720723,0.0180364,112000.0,111990.0,2.60634815]
[1756417721224,0.0180364,112000.0,111990.0,2.60734815]
[1756417721918,0.0180364,112000.0,111990.0,2.76807457]
[1756417723019,0.97113386,112020.0,112010.0,0.104789]
[1756417723224,0.97113386,112020.0,112010.0,0.67184286]
[1756417724427,0.97213386,112020.0,112010.0,0.67184286]
[1756417724626,0.97313386,112020.0,112010.0,0.67184286]
[1756417724927,0.57589386,112020.0,112010.0,0.67184286]
[1756417725722,0.57489386,112020.0,112010.0,0.67184286]
[1756417726926,0.57389386,112020.0,112010.0,0.67284286]
[1756417727434,0.57389386,112020.0,112010.0,0.67184286]
[1756417727625,0.03128,112020.0,112010.0,0.67284286]
[1756417727820,0.57389386,112020.0,112010.0,0.67284286]
[1756417728426,0.03128,112020.0,112010.0,0.67284286]
[1756417728630,0.57389386,112020.0,112010.0,0.67284286]
[1756417729724,0.57389386,112020.0,112010.0,0.130229]
[1756417729925,0.03128,112020.0,112010.0,0.67284286]
[1756417730125,0.57389386,112020.0,112010.0,0.67284286]
[1756417732625,0.03128,112020.0,112010.0,0.67284286]
[1756417732928,0.01526,112020.0,112010.0,0.69280951]
[1756417734530,1.10472,112030.0,112020.0,0.129221]
[1756417734732,1.64733386,112030.0,112020.0,0.129221]
[1756417737135,1.64833386,112030.0,112020.0,0.129221]
[1756417737836,1.64933386,112030.0,112020.0,0.129221]
[1756417738846,1.64933386,112030.0,112020.0,0.67183486]
[1756417739249,1.64833386,112030.0,112020.0,0.67283486]
[1756417739844,1.10572,112030.0,112020.0,0.130221]
[1756417740149,1.64833386,112030.0,112020.0,0.67283486]
[1756417740548,1.64733386,112030.0,112020.0,0.67283486]
[1756417741251,0.83869386,112030.0,112020.0,0.67283486]
[1756417741450,1.64825386,112030.0,112020.0,0.67183486]
[1756417741640,1.64925386,112030.0,112020.0,0.67183486]
[1756417742251,1.64925386,112030.0,112020.0,0.129221]
[1756417742451,1.64925386,112030.0,112020.0,0.67183486]
[1756417742652,1.64825386,112030.0,112020.0,0.67283486]
[1756417743449,1.64725386,112030.0,112020.0,0.67283486]
[1756417744252,1.64825386,112030.0,112020.0,0.67183486]
[1756417745053,1.64925386,112030.0,112020.0,0.67183486]
[1756417746654,1.10664,112030.0,112020.0,0.67183486]
[1756417746953,1.64925386,112030.0,112020.0,0.67183486]
[1756417747654,0.83969386,112030.0,112020.0,0.67183486]
[1756417747858,1.64917386,112030.0,112020.0,0.67183486]
[1756417749654,0.002,112030.0,112020.0,0.67183486]
[1756417749853,0.01781,112030.0,112020.0,1.53444872]
[1756417750249,0.01781,112030.0,112020.0,0.449221]
[1756417750455,0.01781,112030.0,112020.0,1.53444872]
[1756417750961,0.01681,112030.0,112020.0,1.53444872]
[1756417751257,0.01581,112030.0,112020.0,1.53544872]
[1756417752459,0.03183,112030.0,112020.0,0.130221]
[1756417752757,0.03183,112030.0,112020.0,1.21544872]
[1756417756160,0.03183,112030.0,112020.0,0.130221]
[1756417756362,0.03183,112030.0,112020.0,0.67283486]
[1756417756559,0.03183,112030.0,112020.0,0.130221]
[1756417756761,0.03183,112030.0,112020.0,0.67283486]
[1756417762063,0.01581,112030.0,112020.0,0.67283486]
[1756417762361,0.03183,112030.0,112020.0,0.67283486]
[1756417763962,0.86030854,112040.0,112030.0,0.1044233]
[1756417764154,1.4029224,112040.0,112030.0,0.67188716]
[1756417764664,1.4029224,112040.0,112030.0,0.1292733]
[1756417765169,1.4029224,112040.0,112030.0,0.67188716]
[1756417765566,1.4039224,112040.0,112030.0,0.67188716]
[1756417766065,0.86130854,112040.0,112030.0,0.1292733]
[1756417766266,1.4039224,112040.0,112030.0,0.67188716]
[1756417766759,1.4049224,112040.0,112030.0,0.67188716]
[1756417767367,1.4049224,112040.0,112030.0,0.1292733]
[1756417767767,1.4049224,112040.0,112030.0,0.67188716]
[1756417769167,1.4049224,112040.0,112030.0,0.1292733]
[1756417769367,1.4049224,112040.0,112030.0,0.67188716]
[1756417769867,1.4049224,112040.0,112030.0,0.1292733]
[1756417770069,1.4049224,112040.0,112030.0,0.67188716]
[1756417770868,0.86230854,112040.0,112030.0,0.67188716]
[1756417771068,1.4049224,112040.0,112030.0,0.67188716]
[1756417772072,0.05218854,112040.0,112030.0,0.67188716]
[1756417772268,1.4068424,112040.0,112030.0,0.1292733]
[1756417772670,0.86422854,112040.0,112030.0,0.67188716]
[1756417772867,1.4068424,112040.0,112030.0,0.67188716]
[1756417773269,1.4068424,112040.0,112030.0,0.1292733]
[1756417773470,1.4068424,112040.0,112030.0,0.67188716]
[1756417774373,0.86422854,112040.0,112030.0,0.67188716]
[1756417774572,1.4068424,112040.0,112030.0,0.67188716]
[1756417776277,0.86422854,112040.0,112030.0,0.67188716]
[1756417776577,1.4068424,112040.0,112030.0,0.67188716]
[1756417777174,0.86422854,112040.0,112030.0,0.67188716]
[1756417777474,1.4068424,112040.0,112030.0,0.67188716]
[1756417777975,1.4068424,112040.0,112030.0,0.1292733]
[1756417778176,1.4068424,112040.0,112030.0,0.67188716]
[1756417779780,0.86422854,112040.0,112030.0,0.67188716]
[1756417779978,1.4068424,112040.0,112030.0,0.67188716]
[1756417780580,0.86422854,112040.0,112030.0,0.67188716]
[1756417781081,1.4068424,112040.0,112030.0,0.67188716]
[1756417783083,1.4068424,112040.0,112030.0,0.1292733]
[1756417783280,1.4068424,112040.0,112030.0,0.67188716]
[1756417790884,1.4068424,112040.0,112030.0,0.1292733]
[1756417791086,1.4068424,112040.0,112030.0,0.67188716]
[1756417791389,1.4068424,112040.0,112030.0,0.68087852]
[1756417791691,1.4068424,112040.0,112030.0,0.13826466]
[1756417791891,1.4068424,112040.0,112030.0,0.68087852]
[1756417793195,1.4068424,112040.0,112030.0,0.13826466]
[1756417793492,1.4068424,112040.0,112030.0,0.68087852]
[1756417793692,1.4068424,112040.0,112030.0,0.67188716]
[1756417794193,1.4068424,112040.0,112030.0,0.1292733]
[1756417794591,1.4068424,112040.0,112030.0,0.67188716]
[1756417798394,0.86422854,112040.0,112030.0,0.67188716]
[1756417798797,1.4068424,112040.0,112030.0,0.67188716]
[1756417799399,0.86422854,112040.0,112030.0,0.67188716]
[1756417799595,1.4068424,112040.0,112030.0,0.67188716]
[1756417801497,0.86422854,112040.0,112030.0,0.67188716]
[1756417801999,1.4068424,112040.0,112030.0,0.67188716]
[1756417802698,1.38848386,112040.0,112030.0,0.67188716]
[1756417802900,1.38848386,112040.0,112030.0,0.69152831]
[1756417804500,1.38848386,112040.0,112030.0,0.14891445]
[1756417804700,1.38848386,112040.0,112030.0,0.69152831]
[1756417806201,0.84587,112040.0,112030.0,0.69152831]
[1756417806402,1.38848386,112040.0,112030.0,0.69152831]
[1756417807000,0.03383,112040.0,112030.0,0.69152831]
[1756417807395,0.01781,112040.0,112030.0,0.69152831]
[1756417807796,0.01781,112040.0,112030.0,1.01152831]
[1756417808800,0.01781,112040.0,112030.0,0.69152831]
[1756417811007,0.002,112040.0,112030.0,0.69152831]
[1756417811605,0.002,112040.0,112030.0,1.82500831]
[1756417812303,0.001,112040.0,112030.0,1.82500831]
[1756417812607,0.001,112040.0,112030.0,1.50600831]
[1756417812808,0.001,112040.0,112030.0,1.75600831]
[1756417813195,0.84561,112050.0,112040.0,0.1289053]
[1756417813403,0.84561,112050.0,112040.0,0.67151916]
[1756417814307,1.38822386,112050.0,112040.0,0.67151916]
[1756417814799,1.38822386,112050.0,112040.0,0.67251916]
[1756417815000,0.84525,112050.0,112040.0,0.67251916]
[1756417816510,0.82923,112050.0,112040.0,0.67251916]
[1756417816716,0.84525,112050.0,112040.0,0.67251916]
[1756417817007,0.03197,112050.0,112040.0,0.67251916]
[1756417818011,0.01595,112050.0,112040.0,0.67251916]
[1756417818511,0.03197,112050.0,112040.0,0.67251916]
[1756417827412,0.01595,112050.0,112040.0,0.67251916]
[1756417827814,0.03197,112050.0,112040.0,0.67251916]
[1756417829011,0.01595,112050.0,112040.0,0.67251916]
[1756417830215,0.03197,112050.0,112040.0,0.67251916]
[1756417832318,1.37127386,112060.0,112040.0,0.73847646]
[1756417832520,1.38620386,112060.0,112050.0,0.66986116]
[1756417832909,0.03179,112060.0,112050.0,0.66986116]
[1756417833209,0.84359,112060.0,112050.0,0.66986116]
[1756417833714,1.37018386,112060.0,112050.0,0.66986116]
[1756417833917,1.38620386,112060.0,112050.0,0.66986116]
[1756417834320,1.38720386,112060.0,112050.0,0.66986116]
[1756417834820,0.84459,112060.0,112050.0,0.66986116]
[1756417835020,1.38720386,112060.0,112050.0,0.66986116]
[1756417835318,1.38820386,112060.0,112050.0,0.66986116]
[1756417836722,1.38820386,112060.0,112050.0,0.67900661]
[1756417837320,0.84559,112060.0,112050.0,0.67900661]
[1756417837622,1.38820386,112060.0,112050.0,0.67900661]
[1756417837821,0.84559,112060.0,112050.0,0.67900661]
[1756417838018,1.38820386,112060.0,112050.0,0.67900661]